[Event "Titled Tuesday Blitz May 16 Late 2023"]
[White "Liu, Casper"]
[Black "Harshavardhan G B"]
[WhiteFideId "1454153"]
[BlackFideId "25059009"]
[WhiteElo "2221"]
[BlackElo "2323"]
[Result "1/2-1/2"]
[Round "08"]
[TimeControl "180+2"]
[Date "2023.05.16"]
[WhiteClock "0:00:30"]
[BlackClock "0:00:20"]

1. e4 {[%clk 0:03:00]}  e5 {[%clk 0:02:57]} 2. Nf3 {[%clk 0:03:00]}  Nc6 {[%clk 0:02:57]} 3. d4 {[%clk 0:03:00]}  exd4 {[%clk 0:02:56]} 4. Nxd4 {[%clk 0:03:01]}  Qf6 {[%clk 0:02:56]} 5. c3 {[%clk 0:02:58]}  Bc5 {[%clk 0:02:56]} 6. Be3 {[%clk 0:02:58]}  Nge7 {[%clk 0:02:54]} 7. g3 {[%clk 0:02:58]}  Bb6 {[%clk 0:02:53]} 8. Bg2 {[%clk 0:02:58]}  d6 {[%clk 0:02:53]} 9. O-O {[%clk 0:02:58]}  O-O {[%clk 0:02:54]} 10. Na3 {[%clk 0:02:57]}  Ne5 {[%clk 0:02:48]} 11. f3 {[%clk 0:02:41]}  c5 {[%clk 0:02:45]} 12. Ndc2 {[%clk 0:02:34]}  Rd8 {[%clk 0:02:44]} 13. Qe2 {[%clk 0:02:31]}  d5 {[%clk 0:02:44]} 14. exd5 {[%clk 0:02:30]}  Nxd5 {[%clk 0:02:44]} 15. Bf2 {[%clk 0:02:31]}  Bf5 {[%clk 0:02:42]} 16. Rad1 {[%clk 0:02:31]}  Nc7 {[%clk 0:02:30]} 17. Rxd8+ {[%clk 0:02:10]}  Rxd8 {[%clk 0:02:28]} 18. Re1 {[%clk 0:02:10]}  Nd3 {[%clk 0:02:26]} 19. Rd1 {[%clk 0:02:07]}  Nxf2 {[%clk 0:02:17]} 20. Rxd8+ {[%clk 0:01:59]}  Qxd8 {[%clk 0:02:18]} 21. Kxf2 {[%clk 0:01:59]}  Bd3 {[%clk 0:02:15]} 22. Qe5 {[%clk 0:01:51]}  c4+ {[%clk 0:02:06]} 23. Ke1 {[%clk 0:01:49]}  Ne6 {[%clk 0:02:01]} 24. f4 {[%clk 0:01:46]}  g6 {[%clk 0:01:55]} 25. Ne3 {[%clk 0:01:34]}  Bc7 {[%clk 0:01:38]} 26. Qd5 {[%clk 0:01:26]}  Qe7 {[%clk 0:01:32]} 27. Kd2 {[%clk 0:01:16]}  Nxf4 {[%clk 0:01:19]} 28. gxf4 {[%clk 0:01:09]}  Bxf4 {[%clk 0:01:20]} 29. Qf3 {[%clk 0:01:07]}  Qg5 {[%clk 0:01:10]} 30. Bh1 {[%clk 0:01:00]}  Bxh2 {[%clk 0:01:04]} 31. Nc2 {[%clk 0:00:54]}  Bf4 {[%clk 0:01:02]} 32. Ne1 {[%clk 0:00:53]}  Bb1 {[%clk 0:00:54]} 33. a3 {[%clk 0:00:52]}  b5 {[%clk 0:00:53]} 34. Ng2 {[%clk 0:00:51]}  Bh2 {[%clk 0:00:47]} 35. Ne1 {[%clk 0:00:40]}  Kg7 {[%clk 0:00:46]} 36. Ke2 {[%clk 0:00:36]}  Bf4 {[%clk 0:00:43]} 37. Nd5 {[%clk 0:00:34]}  Qe5+ {[%clk 0:00:40]} 38. Kf2 {[%clk 0:00:31]}  Bc1 {[%clk 0:00:37]} 39. Qg4 {[%clk 0:00:23]}  Bxb2 {[%clk 0:00:33]} 40. Qf4 {[%clk 0:00:16]}  Qxf4+ {[%clk 0:00:32]} 41. Nxf4 {[%clk 0:00:17]}  Bxc3 {[%clk 0:00:32]} 42. Nf3 {[%clk 0:00:18]}  Be4 {[%clk 0:00:30]} 43. Bg2 {[%clk 0:00:17]}  Bb2 {[%clk 0:00:29]} 44. Ke3 {[%clk 0:00:17]}  Bb7 {[%clk 0:00:26]} 45. Bf1 {[%clk 0:00:18]}  Bxf3 {[%clk 0:00:23]} 46. Kxf3 {[%clk 0:00:18]}  Bxa3 {[%clk 0:00:24]} 47. Ke4 {[%clk 0:00:17]}  h5 {[%clk 0:00:22]} 48. Nd5 {[%clk 0:00:18]}  Bd6 {[%clk 0:00:19]} 49. Nc3 {[%clk 0:00:17]}  a6 {[%clk 0:00:20]} 50. Kd5 {[%clk 0:00:18]}  Bf4 {[%clk 0:00:19]} 51. Ne4 {[%clk 0:00:18]}  h4 {[%clk 0:00:19]} 52. Kc5 {[%clk 0:00:17]}  g5 {[%clk 0:00:17]} 53. Kb6 {[%clk 0:00:17]}  g4 {[%clk 0:00:17]} 54. Kxa6 {[%clk 0:00:18]}  b4 {[%clk 0:00:17]} 55. Bxc4 {[%clk 0:00:16]}  h3 {[%clk 0:00:18]} 56. Nf2 {[%clk 0:00:15]}  h2 {[%clk 0:00:18]} 57. Bd5 {[%clk 0:00:15]}  g3 {[%clk 0:00:18]} 58. Nd3 {[%clk 0:00:15]}  Be3 {[%clk 0:00:17]} 59. Kb5 {[%clk 0:00:15]}  b3 {[%clk 0:00:17]} 60. Kc4 {[%clk 0:00:16]}  Kg6 {[%clk 0:00:16]} 61. Kxb3 {[%clk 0:00:15]}  Kg5 {[%clk 0:00:16]} 62. Kc2 {[%clk 0:00:16]}  Kg4 {[%clk 0:00:16]} 63. Bg2 {[%clk 0:00:16]}  f5 {[%clk 0:00:16]} 64. Kd1 {[%clk 0:00:16]}  f4 {[%clk 0:00:16]} 65. Ke2 {[%clk 0:00:17]}  Bd4 {[%clk 0:00:16]} 66. Nb4 {[%clk 0:00:16]}  Kf5 {[%clk 0:00:15]} 67. Nc6 {[%clk 0:00:16]}  Bc5 {[%clk 0:00:15]} 68. Kf3 {[%clk 0:00:16]}  Be3 {[%clk 0:00:14]} 69. Bh1 {[%clk 0:00:16]}  Ke6 {[%clk 0:00:14]} 70. Nb4 {[%clk 0:00:16]}  Ke5 {[%clk 0:00:14]} 71. Nc2 {[%clk 0:00:16]}  Bc1 {[%clk 0:00:14]} 72. Ne1 {[%clk 0:00:16]}  Kd4 {[%clk 0:00:14]} 73. Ng2 {[%clk 0:00:17]}  Bd2 {[%clk 0:00:14]} 74. Nxf4 {[%clk 0:00:17]}  Be1 {[%clk 0:00:13]} 75. Ne2+ {[%clk 0:00:17]}  Kd3 {[%clk 0:00:13]} 76. Nxg3 {[%clk 0:00:17]}  Ba5 {[%clk 0:00:14]} 77. Nf1 {[%clk 0:00:17]}  Bc7 {[%clk 0:00:15]} 78. Kg2 {[%clk 0:00:17]}  Ke2 {[%clk 0:00:15]} 79. Nxh2 {[%clk 0:00:18]}  Bd6 {[%clk 0:00:15]} 80. Ng4 {[%clk 0:00:18]}  Bc7 {[%clk 0:00:16]} 81. Kh3 {[%clk 0:00:18]}  Kd3 {[%clk 0:00:16]} 82. Bd5 {[%clk 0:00:19]}  Kd4 {[%clk 0:00:17]} 83. Be6 {[%clk 0:00:19]}  Ke4 {[%clk 0:00:17]} 84. Kh4 {[%clk 0:00:20]}  Kf4 {[%clk 0:00:17]} 85. Kh5 {[%clk 0:00:20]}  Bd8 {[%clk 0:00:18]} 86. Kg6 {[%clk 0:00:20]}  Bg5 {[%clk 0:00:18]} 87. Kf7 {[%clk 0:00:20]}  Bh4 {[%clk 0:00:18]} 88. Ke8 {[%clk 0:00:21]}  Bg5 {[%clk 0:00:18]} 89. Kd7 {[%clk 0:00:21]}  Bh4 {[%clk 0:00:19]} 90. Kc6 {[%clk 0:00:22]}  Bg5 {[%clk 0:00:20]} 91. Kd5 {[%clk 0:00:23]}  Bh4 {[%clk 0:00:20]} 92. Nh6 {[%clk 0:00:24]}  Bg5 {[%clk 0:00:21]} 93. Nf5 {[%clk 0:00:24]}  Bf6 {[%clk 0:00:21]} 94. Nd4 {[%clk 0:00:25]}  Bd8 {[%clk 0:00:20]} 95. Ne2+ {[%clk 0:00:25]}  Ke3 {[%clk 0:00:20]} 96. Bg4 {[%clk 0:00:25]}  Bh4 {[%clk 0:00:19]} 97. Nc3 {[%clk 0:00:25]}  Bd8 {[%clk 0:00:19]} 98. Nd1+ {[%clk 0:00:26]}  Kf4 {[%clk 0:00:19]} 99. Be2 {[%clk 0:00:26]}  Kg3 {[%clk 0:00:20]} 100. Ke4 {[%clk 0:00:25]}  Be7 {[%clk 0:00:20]} 101. Ne3 {[%clk 0:00:25]}  Bd8 {[%clk 0:00:20]} 102. Nf5+ {[%clk 0:00:26]}  Kf2 {[%clk 0:00:21]} 103. Bg4 {[%clk 0:00:26]}  Bb6 {[%clk 0:00:20]} 104. Bh5 {[%clk 0:00:26]}  Bd8 {[%clk 0:00:20]} 105. Ng7 {[%clk 0:00:26]}  Bb6 {[%clk 0:00:21]} 106. Ne6 {[%clk 0:00:27]}  Ba5 {[%clk 0:00:21]} 107. Ng5 {[%clk 0:00:26]}  Bb6 {[%clk 0:00:21]} 108. Kf4 {[%clk 0:00:27]}  Bc7+ {[%clk 0:00:21]} 109. Kg4 {[%clk 0:00:27]}  Bb6 {[%clk 0:00:21]} 110. Kf4 {[%clk 0:00:27]}  Bc7+ {[%clk 0:00:21]} 111. Ke4 {[%clk 0:00:27]}  Bb6 {[%clk 0:00:21]} 112. Ne6 {[%clk 0:00:28]}  Ba5 {[%clk 0:00:21]} 113. Kf4 {[%clk 0:00:28]}  Bb6 {[%clk 0:00:21]} 114. Kg4 {[%clk 0:00:26]}  Ke3 {[%clk 0:00:21]} 115. Kf5 {[%clk 0:00:26]}  Kf2 {[%clk 0:00:21]} 116. Be8 {[%clk 0:00:27]}  Ba5 {[%clk 0:00:21]} 117. Bc6 {[%clk 0:00:28]}  Bb6 {[%clk 0:00:21]} 118. Ke4 {[%clk 0:00:28]}  Ba5 {[%clk 0:00:21]} 119. Ng5 {[%clk 0:00:29]}  Bc7 {[%clk 0:00:21]} 120. Ne6 {[%clk 0:00:28]}  Bb6 {[%clk 0:00:21]} 121. Ng5 {[%clk 0:00:29]}  Ba5 {[%clk 0:00:21]} 122. Kf4 {[%clk 0:00:28]}  Bb6 {[%clk 0:00:21]} 123. Ne4+ {[%clk 0:00:28]}  Ke2 {[%clk 0:00:21]} 124. Bb5+ {[%clk 0:00:29]}  Kd1 {[%clk 0:00:20]} 125. Bd3 {[%clk 0:00:30]}  Kc1 {[%clk 0:00:20]} 126. Nd6 {[%clk 0:00:29]}  Bc7 {[%clk 0:00:19]} 127. Ke5 {[%clk 0:00:29]}  Kb2 {[%clk 0:00:20]} 128. Kd5 {[%clk 0:00:30]}  Bd8 {[%clk 0:00:20]} 129. Nc4+ {[%clk 0:00:30]} 1/2-1/2


[Site "https://www.chess.com"]

[Event "Titled Tuesday Blitz May 16 Late 2023"]
[White "Wizard_of_Odds"]
[Black "De La Colina, Nicolas"]
[BlackFideId "30946921"]
[WhiteElo "2456"]
[BlackElo "2046"]
[Result "0-1"]
[Round "08"]
[TimeControl "180+2"]
[Date "2023.05.16"]
[WhiteClock "0:00:00"]
[BlackClock "0:01:10"]

1. Nf3 {[%clk 0:02:59]}  g6 {[%clk 0:03:00]} 2. h4 {[%clk 0:02:59]}  Bg7 {[%clk 0:03:01]} 3. h5 {[%clk 0:02:59]}  d6 {[%clk 0:03:01]} 4. d4 {[%clk 0:02:57]}  Bg4 {[%clk 0:02:57]} 5. h6 {[%clk 0:02:54]}  Bf8 {[%clk 0:02:57]} 6. e4 {[%clk 0:02:51]}  e6 {[%clk 0:02:49]} 7. Be2 {[%clk 0:02:49]}  Nf6 {[%clk 0:02:47]} 8. Nc3 {[%clk 0:02:43]}  Be7 {[%clk 0:02:46]} 9. Be3 {[%clk 0:02:37]}  O-O {[%clk 0:02:46]} 10. Qd2 {[%clk 0:02:25]}  a6 {[%clk 0:02:40]} 11. a4 {[%clk 0:02:19]}  Nc6 {[%clk 0:02:34]} 12. Rd1 {[%clk 0:02:09]}  d5 {[%clk 0:02:28]} 13. e5 {[%clk 0:02:05]}  Nd7 {[%clk 0:02:24]} 14. Nh2 {[%clk 0:01:59]}  Bxe2 {[%clk 0:02:22]} 15. Nxe2 {[%clk 0:01:59]}  Na7 {[%clk 0:02:18]} 16. Ng4 {[%clk 0:01:52]}  c5 {[%clk 0:02:17]} 17. c3 {[%clk 0:01:51]}  Rc8 {[%clk 0:02:16]} 18. Rh3 {[%clk 0:01:32]}  Nc6 {[%clk 0:02:14]} 19. Rf3 {[%clk 0:01:23]}  Na5 {[%clk 0:02:05]} 20. dxc5 {[%clk 0:01:11]}  Nc4 {[%clk 0:01:59]} 21. Qc2 {[%clk 0:01:05]}  Ndxe5 {[%clk 0:01:51]} 22. Nxe5 {[%clk 0:00:53]}  Nxe5 {[%clk 0:01:52]} 23. Rg3 {[%clk 0:00:42]}  Bxc5 {[%clk 0:01:52]} 24. Bg5 {[%clk 0:00:37]}  Be7 {[%clk 0:01:50]} 25. f4 {[%clk 0:00:34]}  Nc6 {[%clk 0:01:46]} 26. Qd3 {[%clk 0:00:18]}  Re8 {[%clk 0:01:38]} 27. Kf1 {[%clk 0:00:16]}  Bf6 {[%clk 0:01:31]} 28. Rg4 {[%clk 0:00:13]}  Na5 {[%clk 0:01:29]} 29. Nd4 {[%clk 0:00:10]}  Nc4 {[%clk 0:01:21]} 30. Qe2 {[%clk 0:00:10]}  Nd6 {[%clk 0:01:20]} 31. Nf3 {[%clk 0:00:07]}  Nf5 {[%clk 0:01:18]} 32. Ne5 {[%clk 0:00:05]}  Bxg5 {[%clk 0:01:09]} 33. fxg5 {[%clk 0:00:00]}  Qb6 {[%clk 0:01:10]} 0-1


[Site "https://www.chess.com"]

[Event "Titled Tuesday Blitz May 16 Late 2023"]
[White "MKlose11"]
[Black "Papayan, Oleg"]
[BlackFideId "4193911"]
[WhiteElo "2654"]
[BlackElo "2171"]
[Result "1-0"]
[Round "08"]
[TimeControl "180+2"]
[Date "2023.05.16"]
[WhiteClock "0:00:22"]
[BlackClock "0:00:00"]

1. e4 {[%clk 0:02:56]}  e5 {[%clk 0:03:00]} 2. Nf3 {[%clk 0:02:56]}  Nc6 {[%clk 0:02:59]} 3. d4 {[%clk 0:02:56]}  exd4 {[%clk 0:02:58]} 4. Bc4 {[%clk 0:02:56]}  Nf6 {[%clk 0:02:58]} 5. O-O {[%clk 0:02:55]}  Nxe4 {[%clk 0:02:56]} 6. Re1 {[%clk 0:02:56]}  d5 {[%clk 0:02:57]} 7. Bxd5 {[%clk 0:02:56]}  Qxd5 {[%clk 0:02:57]} 8. Nc3 {[%clk 0:02:57]}  Qa5 {[%clk 0:02:56]} 9. Nxe4 {[%clk 0:02:57]}  Be6 {[%clk 0:02:57]} 10. Neg5 {[%clk 0:02:56]}  O-O-O {[%clk 0:02:58]} 11. Nxe6 {[%clk 0:02:57]}  fxe6 {[%clk 0:02:58]} 12. Rxe6 {[%clk 0:02:58]}  Be7 {[%clk 0:02:59]} 13. Qe2 {[%clk 0:02:58]}  Bf6 {[%clk 0:02:59]} 14. Bd2 {[%clk 0:02:59]}  Qc5 {[%clk 0:02:40]} 15. Qe4 {[%clk 0:02:55]}  Qd5 {[%clk 0:02:29]} 16. Qxd5 {[%clk 0:02:51]}  Rxd5 {[%clk 0:02:30]} 17. Kf1 {[%clk 0:02:41]}  Rb5 {[%clk 0:02:14]} 18. b3 {[%clk 0:02:40]}  Rc5 {[%clk 0:02:04]} 19. Rc1 {[%clk 0:02:35]}  Rd8 {[%clk 0:01:51]} 20. Ne1 {[%clk 0:02:34]}  Ne5 {[%clk 0:01:34]} 21. Nd3 {[%clk 0:02:32]}  Nxd3 {[%clk 0:01:22]} 22. cxd3 {[%clk 0:02:33]}  Rxc1+ {[%clk 0:01:19]} 23. Bxc1 {[%clk 0:02:32]}  Rd5 {[%clk 0:01:20]} 24. Bf4 {[%clk 0:01:58]}  Rc5 {[%clk 0:01:11]} 25. Re1 {[%clk 0:01:55]}  g5 {[%clk 0:00:59]} 26. Rc1 {[%clk 0:01:55]}  Rc3 {[%clk 0:00:48]} 27. Rxc3 {[%clk 0:01:44]}  dxc3 {[%clk 0:00:49]} 28. Be3 {[%clk 0:01:36]}  b5 {[%clk 0:00:42]} 29. Ke2 {[%clk 0:01:34]}  a5 {[%clk 0:00:35]} 30. a4 {[%clk 0:01:25]}  bxa4 {[%clk 0:00:23]} 31. bxa4 {[%clk 0:01:25]}  Kd7 {[%clk 0:00:24]} 32. f4 {[%clk 0:01:16]}  g4 {[%clk 0:00:17]} 33. f5 {[%clk 0:01:12]}  Kc6 {[%clk 0:00:16]} 34. Bf4 {[%clk 0:01:06]}  Kc5 {[%clk 0:00:10]} 35. Kd1 {[%clk 0:00:57]}  Kb4 {[%clk 0:00:05]} 36. Kc2 {[%clk 0:00:57]}  c5 {[%clk 0:00:05]} 37. Bd6 {[%clk 0:00:56]}  Kxa4 {[%clk 0:00:03]} 38. Bxc5 {[%clk 0:00:57]}  Kb5 {[%clk 0:00:03]} 39. Bd6 {[%clk 0:00:56]}  Kc6 {[%clk 0:00:03]} 40. Ba3 {[%clk 0:00:49]}  a4 {[%clk 0:00:02]} 41. Bb4 {[%clk 0:00:49]}  Kd5 {[%clk 0:00:01]} 42. h3 {[%clk 0:00:45]}  gxh3 {[%clk 0:00:01]} 43. gxh3 {[%clk 0:00:46]}  Ke5 {[%clk 0:00:01]} 44. Bxc3+ {[%clk 0:00:25]}  Kxf5 {[%clk 0:00:02]} 45. Kb2 {[%clk 0:00:24]}  a3+ {[%clk 0:00:01]} 46. Kb3 {[%clk 0:00:22]}  h5 {[%clk 0:00:01]} 47. Bxf6 {[%clk 0:00:21]}  Kxf6 {[%clk 0:00:02]} 48. Kxa3 {[%clk 0:00:22]}  Ke5 {[%clk 0:00:03]} 49. Kb3 {[%clk 0:00:22]}  Kd4 {[%clk 0:00:03]} 50. Kc2 {[%clk 0:00:22]}  h4 {[%clk 0:00:03]} 51. Kd2 {[%clk 0:00:23]}  Kd5 {[%clk 0:00:03]} 52. Ke2 {[%clk 0:00:24]}  Kd4 {[%clk 0:00:04]} 53. Kd2 {[%clk 0:00:24]}  Kd5 {[%clk 0:00:04]} 54. Ke3 {[%clk 0:00:25]}  Ke5 {[%clk 0:00:04]} 55. Kf3 {[%clk 0:00:21]}  Kd4 {[%clk 0:00:05]} 56. Kg4 {[%clk 0:00:22]}  Kxd3 {[%clk 0:00:05]} 57. Kxh4 {[%clk 0:00:22]}  Ke4 {[%clk 0:00:06]} 58. Kg5 {[%clk 0:00:23]}  Ke5 {[%clk 0:00:07]} 59. h4 {[%clk 0:00:21]}  Ke6 {[%clk 0:00:08]} 60. Kg6 {[%clk 0:00:21]}  Ke7 {[%clk 0:00:00]} 61. Kg7 {[%clk 0:00:22]} 1-0


[Site "https://www.chess.com"]

[Event "Titled Tuesday Blitz May 16 Late 2023"]
[White "Kovalevsky, Stanislav"]
[Black "Rosen, Eric"]
[WhiteFideId "13508598"]
[BlackFideId "2032562"]
[WhiteElo "2174"]
[BlackElo "2331"]
[Result "0-1"]
[Round "08"]
[TimeControl "180+2"]
[Date "2023.05.16"]
[WhiteClock "0:00:00"]
[BlackClock "0:00:08"]

1. c4 {[%clk 0:03:00]}  e6 {[%clk 0:02:57]} 2. e4 {[%clk 0:02:58]}  d5 {[%clk 0:02:56]} 3. exd5 {[%clk 0:02:59]}  exd5 {[%clk 0:02:57]} 4. cxd5 {[%clk 0:03:00]}  Nf6 {[%clk 0:02:57]} 5. Nc3 {[%clk 0:03:01]}  Nxd5 {[%clk 0:02:57]} 6. Bc4 {[%clk 0:03:02]}  Nxc3 {[%clk 0:02:33]} 7. bxc3 {[%clk 0:03:03]}  Bd6 {[%clk 0:02:29]} 8. Qe2+ {[%clk 0:02:57]}  Qe7 {[%clk 0:02:27]} 9. Qxe7+ {[%clk 0:02:57]}  Bxe7 {[%clk 0:02:27]} 10. Nf3 {[%clk 0:02:57]}  O-O {[%clk 0:02:24]} 11. d4 {[%clk 0:02:56]}  Bf5 {[%clk 0:02:14]} 12. Bf4 {[%clk 0:02:55]}  c6 {[%clk 0:02:12]} 13. O-O {[%clk 0:02:45]}  Nd7 {[%clk 0:02:11]} 14. Rfe1 {[%clk 0:02:41]}  Ba3 {[%clk 0:02:11]} 15. Re2 {[%clk 0:02:22]}  h6 {[%clk 0:01:57]} 16. h3 {[%clk 0:02:19]}  Rfe8 {[%clk 0:01:55]} 17. Rae1 {[%clk 0:02:19]}  Rxe2 {[%clk 0:01:54]} 18. Rxe2 {[%clk 0:02:19]}  Kf8 {[%clk 0:01:53]} 19. Ne5 {[%clk 0:02:14]}  Nxe5 {[%clk 0:01:42]} 20. Bxe5 {[%clk 0:02:15]}  f6 {[%clk 0:01:30]} 21. Bf4 {[%clk 0:01:57]}  b5 {[%clk 0:01:23]} 22. Bb3 {[%clk 0:01:53]}  a5 {[%clk 0:01:23]} 23. g4 {[%clk 0:01:51]}  Bd7 {[%clk 0:01:13]} 24. Bc7 {[%clk 0:01:32]}  a4 {[%clk 0:01:10]} 25. Bc2 {[%clk 0:01:31]}  Re8 {[%clk 0:01:07]} 26. Kf1 {[%clk 0:01:26]}  h5 {[%clk 0:00:45]} 27. Rxe8+ {[%clk 0:01:17]}  Kxe8 {[%clk 0:00:45]} 28. Bg6+ {[%clk 0:01:17]}  Kf8 {[%clk 0:00:45]} 29. Bf5 {[%clk 0:01:10]}  Bxf5 {[%clk 0:00:23]} 30. gxf5 {[%clk 0:01:11]}  Kf7 {[%clk 0:00:24]} 31. Ke2 {[%clk 0:01:04]}  g6 {[%clk 0:00:25]} 32. fxg6+ {[%clk 0:00:53]}  Kxg6 {[%clk 0:00:26]} 33. Kd3 {[%clk 0:00:52]}  Kf5 {[%clk 0:00:24]} 34. c4 {[%clk 0:00:51]}  Ke6 {[%clk 0:00:10]} 35. d5+ {[%clk 0:00:47]}  Kd7 {[%clk 0:00:09]} 36. Ba5 {[%clk 0:00:43]}  b4 {[%clk 0:00:06]} 37. Kd4 {[%clk 0:00:20]}  b3 {[%clk 0:00:04]} 38. axb3 {[%clk 0:00:20]}  axb3 {[%clk 0:00:05]} 39. Kc3 {[%clk 0:00:20]}  b2 {[%clk 0:00:06]} 40. Kc2 {[%clk 0:00:19]}  cxd5 {[%clk 0:00:06]} 41. cxd5 {[%clk 0:00:18]}  Kd6 {[%clk 0:00:07]} 42. Bc3 {[%clk 0:00:17]}  f5 {[%clk 0:00:07]} 43. Bxb2 {[%clk 0:00:11]}  Bxb2 {[%clk 0:00:08]} 44. Kxb2 {[%clk 0:00:12]}  Kxd5 {[%clk 0:00:08]} 45. Kc3 {[%clk 0:00:11]}  Ke4 {[%clk 0:00:09]} 46. Kd2 {[%clk 0:00:10]}  Kf3 {[%clk 0:00:09]} 47. Ke1 {[%clk 0:00:09]}  Kg2 {[%clk 0:00:08]} 48. h4 {[%clk 0:00:08]}  Kh3 {[%clk 0:00:08]} 49. Ke2 {[%clk 0:00:09]}  Kxh4 {[%clk 0:00:08]} 50. Kf3 {[%clk 0:00:09]}  Kg5 {[%clk 0:00:09]} 51. Kg3 {[%clk 0:00:10]}  h4+ {[%clk 0:00:09]} 52. Kf3 {[%clk 0:00:10]}  Kh5 {[%clk 0:00:07]} 53. Kf4 {[%clk 0:00:09]}  Kg6 {[%clk 0:00:06]} 54. Ke3 {[%clk 0:00:07]}  Kf6 {[%clk 0:00:07]} 55. Kf4 {[%clk 0:00:07]}  Ke6 {[%clk 0:00:07]} 56. Kf3 {[%clk 0:00:07]}  Ke5 {[%clk 0:00:06]} 57. Ke3 {[%clk 0:00:06]}  f4+ {[%clk 0:00:07]} 58. Ke2 {[%clk 0:00:05]}  Ke4 {[%clk 0:00:06]} 59. Kf1 {[%clk 0:00:06]}  Kf3 {[%clk 0:00:06]} 60. Kg1 {[%clk 0:00:06]}  h3 {[%clk 0:00:07]} 61. Kf1 {[%clk 0:00:04]}  h2 {[%clk 0:00:07]} 62. Ke1 {[%clk 0:00:00]}  h1=Q+ {[%clk 0:00:08]} 0-1


[Site "https://www.chess.com"]

[Event "Titled Tuesday Blitz May 16 Late 2023"]
[White "Tisaj, Domen"]
[Black "Gatterer, Florian"]
[WhiteFideId "14628708"]
[BlackFideId "811688"]
[WhiteElo "2340"]
[BlackElo "2221"]
[Result "1-0"]
[Round "08"]
[TimeControl "180+2"]
[Date "2023.05.16"]
[WhiteClock "0:00:29"]
[BlackClock "0:00:00"]

1. b3 {[%clk 0:03:00]}  e5 {[%clk 0:02:59]} 2. Bb2 {[%clk 0:03:00]}  Nc6 {[%clk 0:02:59]} 3. e3 {[%clk 0:03:00]}  Nge7 {[%clk 0:02:57]} 4. Nf3 {[%clk 0:03:01]}  d5 {[%clk 0:02:53]} 5. Nxe5 {[%clk 0:03:00]}  Nxe5 {[%clk 0:02:43]} 6. Bxe5 {[%clk 0:03:00]}  Ng6 {[%clk 0:02:38]} 7. Bb2 {[%clk 0:03:00]}  Qg5 {[%clk 0:02:38]} 8. Nc3 {[%clk 0:02:52]}  c6 {[%clk 0:02:34]} 9. Ne2 {[%clk 0:02:27]}  Bg4 {[%clk 0:02:21]} 10. d3 {[%clk 0:02:22]}  Bb4+ {[%clk 0:02:11]} 11. c3 {[%clk 0:02:19]}  Bd6 {[%clk 0:02:07]} 12. Qd2 {[%clk 0:02:19]}  a5 {[%clk 0:01:55]} 13. f3 {[%clk 0:01:37]}  Be6 {[%clk 0:01:43]} 14. Nd4 {[%clk 0:01:33]}  Bd7 {[%clk 0:01:37]} 15. f4 {[%clk 0:01:27]}  Qe7 {[%clk 0:01:31]} 16. a4 {[%clk 0:01:22]}  O-O {[%clk 0:01:25]} 17. Be2 {[%clk 0:01:15]}  Rfe8 {[%clk 0:01:19]} 18. Nc2 {[%clk 0:01:09]}  Nxf4 {[%clk 0:01:02]} 19. exf4 {[%clk 0:01:04]}  Bxf4 {[%clk 0:01:03]} 20. Qd1 {[%clk 0:01:05]}  Bg4 {[%clk 0:00:31]} 21. Nd4 {[%clk 0:01:05]}  Be3 {[%clk 0:00:24]} 22. Nf3 {[%clk 0:01:00]}  Bxf3 {[%clk 0:00:20]} 23. Bxf3 {[%clk 0:00:57]}  Qh4+ {[%clk 0:00:12]} 24. g3 {[%clk 0:00:53]}  Qf6 {[%clk 0:00:12]} 25. Kf1 {[%clk 0:00:52]}  g5 {[%clk 0:00:10]} 26. Kg2 {[%clk 0:00:52]}  g4 {[%clk 0:00:10]} 27. Bxg4 {[%clk 0:00:51]}  Qf2+ {[%clk 0:00:10]} 28. Kh3 {[%clk 0:00:51]}  f5 {[%clk 0:00:09]} 29. Rf1 {[%clk 0:00:49]}  Qxb2 {[%clk 0:00:07]} 30. Bxf5 {[%clk 0:00:47]}  Qxc3 {[%clk 0:00:06]} 31. Qh5 {[%clk 0:00:34]}  Qg7 {[%clk 0:00:06]} 32. Rae1 {[%clk 0:00:35]}  Kh8 {[%clk 0:00:05]} 33. Rf4 {[%clk 0:00:31]}  d4 {[%clk 0:00:00]} 34. Rxd4 {[%clk 0:00:29]} 1-0


[Site "https://www.chess.com"]

[Event "Titled Tuesday Blitz May 16 Late 2023"]
[White "Bogaudinov, Rushan"]
[Black "Colbow, Collin"]
[WhiteFideId "4129288"]
[BlackFideId "16201132"]
[WhiteElo "1941"]
[BlackElo "2351"]
[Result "1-0"]
[Round "08"]
[TimeControl "180+2"]
[Date "2023.05.16"]
[WhiteClock "0:00:17"]
[BlackClock "0:00:00"]

1. e4 {[%clk 0:02:39]}  c6 {[%clk 0:02:58]} 2. d4 {[%clk 0:02:38]}  d5 {[%clk 0:02:59]} 3. e5 {[%clk 0:02:38]}  Bf5 {[%clk 0:02:59]} 4. c4 {[%clk 0:02:39]}  e6 {[%clk 0:02:57]} 5. Nc3 {[%clk 0:02:39]}  Nd7 {[%clk 0:02:56]} 6. a3 {[%clk 0:02:38]}  dxc4 {[%clk 0:02:52]} 7. Bxc4 {[%clk 0:02:37]}  Ne7 {[%clk 0:02:53]} 8. Nge2 {[%clk 0:02:35]}  Nd5 {[%clk 0:02:52]} 9. Ng3 {[%clk 0:02:34]}  Bg6 {[%clk 0:02:52]} 10. O-O {[%clk 0:02:33]}  Be7 {[%clk 0:02:52]} 11. f4 {[%clk 0:02:33]}  N7b6 {[%clk 0:02:33]} 12. Bb3 {[%clk 0:02:32]}  c5 {[%clk 0:02:30]} 13. Nxd5 {[%clk 0:02:21]}  Nxd5 {[%clk 0:02:26]} 14. Ba4+ {[%clk 0:02:10]}  Kf8 {[%clk 0:02:24]} 15. f5 {[%clk 0:02:01]}  exf5 {[%clk 0:02:25]} 16. Nxf5 {[%clk 0:02:01]}  cxd4 {[%clk 0:02:24]} 17. Qxd4 {[%clk 0:01:22]}  Qb6 {[%clk 0:02:24]} 18. Qxb6 {[%clk 0:01:03]}  Nxb6 {[%clk 0:02:25]} 19. Bb3 {[%clk 0:01:00]}  Bc5+ {[%clk 0:02:25]} 20. Kh1 {[%clk 0:01:00]}  Re8 {[%clk 0:02:08]} 21. Nd6 {[%clk 0:00:54]}  Bxd6 {[%clk 0:01:54]} 22. exd6 {[%clk 0:00:55]}  Rd8 {[%clk 0:01:40]} 23. Be3 {[%clk 0:00:45]}  Ke8 {[%clk 0:01:28]} 24. Rfe1 {[%clk 0:00:36]}  Kd7 {[%clk 0:01:28]} 25. Bc5 {[%clk 0:00:34]}  Rhe8 {[%clk 0:01:25]} 26. Re7+ {[%clk 0:00:33]}  Kc6 {[%clk 0:01:18]} 27. Bb4 {[%clk 0:00:30]}  Rxe7 {[%clk 0:00:43]} 28. dxe7 {[%clk 0:00:30]}  Re8 {[%clk 0:00:44]} 29. Rc1+ {[%clk 0:00:28]}  Kd7 {[%clk 0:00:44]} 30. a4 {[%clk 0:00:25]}  Nc8 {[%clk 0:00:33]} 31. a5 {[%clk 0:00:22]}  Nxe7 {[%clk 0:00:22]} 32. Ba4+ {[%clk 0:00:18]}  Nc6 {[%clk 0:00:22]} 33. a6 {[%clk 0:00:18]}  Be4 {[%clk 0:00:16]} 34. axb7 {[%clk 0:00:18]}  Rb8 {[%clk 0:00:13]} 35. Rd1+ {[%clk 0:00:19]}  Ke6 {[%clk 0:00:06]} 36. Re1 {[%clk 0:00:19]}  f5 {[%clk 0:00:07]} 37. Rxe4+ {[%clk 0:00:18]}  fxe4 {[%clk 0:00:07]} 38. Bxc6 {[%clk 0:00:19]}  e3 {[%clk 0:00:06]} 39. Be1 {[%clk 0:00:19]}  Kd6 {[%clk 0:00:05]} 40. Bf3 {[%clk 0:00:19]}  Re8 {[%clk 0:00:02]} 41. Bg3+ {[%clk 0:00:17]}  Kc5 {[%clk 0:00:00]} 42. b8=Q {[%clk 0:00:17]} 1-0


[Site "https://www.chess.com"]